fUSD/lending_fUSD_20250515
["ID","MTS","AMOUNT","RATE_DAILY","PERIOD"]
[361205757,1747339839253,-933.74356251,0.00011,2]
[361205758,1747339839264,-11414.20048834,0.00011,2]
[361205827,1747339840486,-1101.075001,0.00011,2]
[361205828,1747339840539,-378.09468,0.00011,2]
[361205829,1747339840750,-3191.39276772,0.00011,2]
[361205830,1747339840804,-1921.17747068,0.00011,2]
[361205831,1747339840815,-379.60936743,0.00011,2]
[361205832,1747339840859,-32511.87553261,0.00011,2]
[361205833,1747339840871,-557.82739485,0.00011,2]
[361206003,1747339843447,-354.5688838,0.00011,2]
[361206007,1747339843458,-855.329631,0.00011,2]
[361206012,1747339843470,-16286.67987686,0.00011,2]
[361206017,1747339843554,-6872.85642742,0.00011,2]
[361206019,1747339843566,-515.811067,0.00011,2]
[361206020,1747339843580,-641.99246739,0.00011,2]
[361206021,1747339843591,-565.99524606,0.00011,2]
[361206022,1747339843602,-27680.59060375,0.00011,2]
[361206023,1747339843613,-1202.0892,0.00011,2]
[361206024,1747339843643,-1365.85,0.00011,2]
[361206025,1747339843715,-3268.2265522,0.00011,2]
[361206026,1747339843727,-2096.6,0.00011,2]
[361206027,1747339843738,-3067.0402,0.00011,2]
[361206030,1747339843771,-349560.07128757,0.00011,2]
[361206033,1747339843783,-295070.38858542,0.00011,2]
[361206034,1747339843792,-1793111.55837629,0.00011,2]
[361206035,1747339843804,-75984.86244362,0.00011,2]
[361206045,1747339846350,-1235.113726,0.00011,2]
[361206046,1747339846361,-4656.6378,0.00011,2]
[361206047,1747339846372,-290.61673035,0.00011,2]
[361206048,1747339846403,-8209.9872001,0.00011,2]
[361206049,1747339846617,-18702.17,0.00011,2]
[361206050,1747339846638,-66149.15629391,0.00011,2]
[361206051,1747339846651,-300.21196048,0.00011,2]
[361206052,1747339846674,-450807.63031306,0.00011,2]
[361206053,1747339846728,-78998.15633051,0.00011,2]
[361206054,1747339846739,-524.55704423,0.00011,2]
[361206339,1747339850294,150.0,0.00010921,7]
[361207012,1747340098368,-1000.0,0.00010258,2]
[361207013,1747340429878,1833.14,8.23e-05,2]
[361207014,1747340433388,172.1,8.107e-05,2]
[361207015,1747340461707,-254.1,0.00010233,2]
[361207016,1747340461732,-250.0,0.00010236,2]
[361207017,1747340461757,-200.0,0.00010238,2]
[361207018,1747340461781,-1200.0,0.00010242,2]
[361207019,1747340461807,-300.0,0.00010242,2]
[361207020,1747340461834,-300.0,0.00010242,2]
[361207021,1747340461861,-23894.9,0.00010243,2]
[361207022,1747340519421,160.55,0.00021945,30]
[361207023,1747340711448,150.0,9.888e-05,2]
[361207024,1747340711547,150.0,9.901e-05,2]
[361207025,1747340717559,249.98523734,9.888e-05,2]
[361207026,1747340717675,249.98523734,9.899e-05,2]
[361207027,1747340720305,4004.61918786,9e-05,2]
[361207028,1747340724607,309.63301915,9.888e-05,2]
[361207029,1747340724660,309.63301915,9.899e-05,2]
[361207030,1747340725571,-249.98523734,9.91e-05,2]
[361207031,1747340725602,-20.73886426,9.91e-05,2]
[361207032,1747340727640,-187.22757869,9.91e-05,2]
[361207033,1747340731997,150.0,9.888e-05,2]
[361207034,1747340732515,-101.6665762,9.91e-05,2]
[361207035,1747340732538,-148.07953087,9.914e-05,2]
[361207036,1747340733475,150.0,9.888e-05,2]
[361207037,1747340734839,-1.92046913,9.914e-05,2]
[361207038,1747340734860,-249.98523734,9.921e-05,2]
[361207039,1747340734886,-11.12060777,9.921e-05,2]
[361207040,1747340738546,-178.57977619,9.921e-05,2]
[361207041,1747340741015,150.0,9.888e-05,2]
[361207042,1747340741161,-150.0,9.92e-05,2]
[361207043,1747340741184,-72.96121267,9.921e-05,2]
[361207044,1747340743477,150.0,9.888e-05,2]
[361207045,1747340743758,-46.97142252,9.921e-05,2]
[361207046,1747340743780,-150.0,9.926e-05,2]
[361207047,1747340743803,-61.3562672,9.932e-05,2]
[361207048,1747340744475,150.0,9.888e-05,2]
[361207049,1747340748708,-150.0,9.913e-05,2]
[361207050,1747340748737,-33.30053064,9.932e-05,2]
[361207051,1747340752205,150.0,9.888e-05,2]
[361207052,1747340752273,150.0,9.904e-05,2]
[361207053,1747340752626,-150.0,9.921e-05,2]
[361207054,1747340752653,-1.82099006,9.932e-05,2]
[361207055,1747340756573,-153.50744944,9.932e-05,2]
[361207056,1747340756596,-163.40381913,9.932e-05,2]
[361207057,1747340756920,150.0,9.888e-05,2]
[361207058,1747340757800,150.0,9.888e-05,2]
[361207059,1747340758694,-146.22920002,9.932e-05,2]
[361207060,1747340758716,-150.0,9.938e-05,2]
[361207061,1747340758739,-25.54691229,9.938e-05,2]
[361207062,1747340760246,-124.45308771,9.938e-05,2]
[361207063,1747340760270,-27.54691229,9.939e-05,2]
[361207064,1747340763940,-122.45308771,9.939e-05,2]
[361207065,1747340763964,-34.36158335,9.943e-05,2]
[361207066,1747340765737,-157.73247627,9.943e-05,2]
[361207067,1747340767129,-57.89117772,9.943e-05,2]
[361207068,1747340767151,-242.10882228,9.943e-05,2]
[361207069,1747340772326,-67.52419687,9.943e-05,2]
[361207070,1747340772348,-87.72319943,9.945e-05,2]
[361207071,1747340774368,-62.27680057,9.945e-05,2]
[361207072,1747340774392,-150.0,9.952e-05,2]
[361207073,1747340774415,-19.20103483,9.952e-05,2]
[361207074,1747340776535,-130.79896517,9.952e-05,2]
[361207075,1747340776557,-81.66106227,9.954e-05,2]
[361207076,1747340780009,-168.32417507,9.954e-05,2]
[361207077,1747340780030,-97.03415206,9.954e-05,2]
[361207078,1747340780177,163.93,9.434e-05,2]
[361207079,1747340783288,-212.59886709,9.954e-05,2]
[361207080,1747340783313,-29.28450904,9.954e-05,2]
[361207082,1747340790883,-120.71549096,9.954e-05,2]
[361207083,1747340790903,-150.0,9.963e-05,2]
[361207084,1747340790924,-11.77279611,9.965e-05,2]
[361207087,1747340796677,-138.22720389,9.965e-05,2]
[361207088,1747340796700,-234.09405299,9.965e-05,2]
[361207089,1747340801429,-15.89118435,9.965e-05,2]
[361207090,1747340801452,-309.63301915,9.965e-05,2]
[361207091,1747340801475,-31.91979712,9.971e-05,2]
[361207092,1747340805160,-118.08020288,9.971e-05,2]
[361207093,1747340805182,-47.73979712,9.976e-05,2]
[361207094,1747340807153,-158.6830855,9.976e-05,2]
[361207095,1747340809616,-43.56235472,9.976e-05,2]
[361207096,1747340809640,-133.46169463,9.976e-05,2]
[361207097,1747340811954,-176.17132452,9.976e-05,2]
[361207098,1747340811976,-61.24389078,9.978e-05,2]
[361207099,1747340813995,-88.75610922,9.978e-05,2]
[361207100,1747340814019,-111.54964457,9.985e-05,2]
[361207101,1747340816759,-38.45035543,9.985e-05,2]
[361207102,1747340844304,150.0,9.836e-05,7]
[361207106,1747340913426,250.0,9.176e-05,2]
[361207144,1747341031566,-249.98523734,9.988e-05,2]
[361207146,1747341031576,-309.63301915,9.988e-05,2]
[361207148,1747341031586,-150.0,9.988e-05,2]
[361207149,1747341031595,-150.0,9.988e-05,2]
[361207150,1747341031604,-150.0,9.988e-05,2]
[361207151,1747341031614,-150.0,9.988e-05,2]
[361207152,1747341031623,-200.0,9.988e-05,2]
[361207153,1747341031632,-200.0,9.989e-05,2]
[361207154,1747341031642,-150.0,9.991e-05,2]
[361207155,1747341031652,-1200.0,9.998e-05,2]
[361207156,1747341031661,-249.98523734,9.999e-05,2]
[361207157,1747341031670,-309.63301915,9.999e-05,2]
[361207158,1747341031678,-450.0,0.0001,2]
[361207159,1747341031688,-2939.2671328,0.0001,2]
[361207160,1747341031698,-216.93761583,0.0001,2]
[361207161,1747341031707,-150.0,0.00010003,2]
[361207162,1747341031716,-150.0,0.00010004,2]
[361207163,1747341031726,-150.0,0.00010004,2]
[361207164,1747341031737,-249.98523734,0.0001001,2]
[361207165,1747341031747,-309.63301915,0.0001001,2]
[361207166,1747341031756,-150.0,0.00010013,2]
[361207167,1747341031765,-150.0,0.00010017,2]
[361207168,1747341031774,-150.0,0.00010017,2]
[361207169,1747341031783,-249.98523734,0.00010021,2]
[361207170,1747341031792,-309.63301915,0.00010021,2]
[361207171,1747341031801,-150.0,0.00010021,2]
[361207172,1747341031812,-150.0,0.0001003,2]
[361207173,1747341031821,-249.98523734,0.00010032,2]
[361207174,1747341031830,-309.63301915,0.00010032,2]
[361207175,1747341031838,-150.0,0.00010037,2]
[361207176,1747341031847,-150.0,0.00010037,2]
[361207177,1747341031855,-150.0,0.00010043,2]
[361207178,1747341031863,-300.0,0.00010043,2]
[361207179,1747341031871,-249.98523734,0.00010043,2]
[361207180,1747341031880,-309.63301915,0.00010043,2]
[361207181,1747341031889,-150.0,0.00010049,2]
[361207182,1747341031898,-249.98523734,0.00010054,2]
[361207184,1747341031906,-309.63301915,0.00010054,2]
[361207186,1747341031915,-150.0,0.00010054,2]
[361207188,1747341031922,-150.0,0.00010056,2]
[361207190,1747341031931,-150.0,0.00010061,2]
[361207192,1747341031939,-150.0,0.00010062,2]
[361207194,1747341031947,-150.0,0.00010065,2]
[361207196,1747341031955,-249.98523734,0.00010065,2]
[361207199,1747341031964,-309.63301915,0.00010065,2]
[361207202,1747341031972,-150.0,0.00010069,2]
[361207205,1747341031981,-150.0,0.00010071,2]
[361207208,1747341031990,-249.98523734,0.00010076,2]
[361207210,1747341031997,-309.63301915,0.00010076,2]
[361207212,1747341032005,-150.0,0.00010082,2]
[361207214,1747341032013,-150.0,0.00010082,2]
[361207216,1747341032022,-249.98523734,0.00010087,2]
[361207218,1747341032032,-309.63301915,0.00010087,2]
[361207220,1747341032041,-150.0,0.00010087,2]
[361207222,1747341032050,-150.0,0.00010087,2]
[361207224,1747341032059,-150.0,0.00010087,2]
[361207226,1747341032068,-150.0,0.00010087,2]
[361207228,1747341032078,-150.0,0.00010094,2]
[361207230,1747341032087,-249.98523734,0.00010099,2]
[361207232,1747341032096,-309.63301915,0.00010099,2]
[361207234,1747341032106,-150.0,0.00010104,2]
[361207236,1747341032115,-150.0,0.00010107,2]
[361207255,1747341032264,-249.98523734,0.0001011,2]
[361207259,1747341032306,-309.63301915,0.0001011,2]
[361207261,1747341032315,-150.0,0.00010112,2]
[361207263,1747341032325,-150.0,0.00010114,2]
[361207265,1747341032335,-150.0,0.00010119,2]
[361207267,1747341032345,-150.0,0.0001012,2]
[361207269,1747341032355,-249.98523734,0.00010121,2]
[361207271,1747341032364,-309.63301915,0.00010121,2]
[361207273,1747341032374,-150.0,0.00010121,2]
[361207275,1747341032384,-249.98523734,0.00010132,2]
[361207277,1747341032394,-309.63301915,0.00010132,2]
[361207279,1747341032407,-150.0,0.00010133,2]
[361207281,1747341032416,-150.0,0.00010137,2]
[361207283,1747341032426,-150.0,0.00010137,2]
[361207285,1747341032435,-249.98523734,0.00010143,2]
[361207287,1747341032444,-309.63301915,0.00010143,2]
[361207289,1747341032454,-152.55,0.00010145,2]
[361207291,1747341032464,-150.0,0.00010146,2]
[361207293,1747341032474,-150.0,0.00010146,2]
[361207295,1747341032484,-249.98523734,0.00010154,2]
[361207297,1747341032494,-309.63301915,0.00010154,2]
[361207299,1747341032504,-150.0,0.00010154,2]
[361207301,1747341032513,-152.55,0.00010157,2]
[361207303,1747341032523,-150.0,0.00010159,2]
[361207305,1747341032533,-150.0,0.00010162,2]
[361207307,1747341032543,-249.98523734,0.00010165,2]
[361207309,1747341032552,-309.63301915,0.00010165,2]
[361207311,1747341032562,-615.36,0.0001017,2]
[361207313,1747341032572,-152.55,0.0001017,2]
[361207315,1747341032581,-150.0,0.00010171,2]
[361207317,1747341032590,-150.0,0.00010172,2]
[361207319,1747341032599,-249.98523734,0.00010176,2]
[361207321,1747341032608,-309.63301915,0.00010176,2]
[361207323,1747341032618,-150.0,0.00010177,2]
[361207325,1747341032627,-150.0,0.00010178,2]
[361207327,1747341032636,-152.55,0.00010183,2]
[361207329,1747341032645,-150.0,0.00010185,2]
[361207331,1747341032654,-249.98523734,0.00010187,2]
[361207333,1747341032663,-309.63301915,0.00010187,2]
[361207335,1747341032673,-150.0,0.00010187,2]
[361207337,1747341032682,-150.0,0.00010187,2]
[361207339,1747341032692,-150.0,0.00010187,2]
[361207341,1747341032703,-150.0,0.00010187,2]
[361207343,1747341032713,-152.55,0.00010195,2]
[361207345,1747341032722,-150.0,0.00010198,2]
[361207347,1747341032731,-249.98523734,0.00010198,2]
[361207349,1747341032741,-309.63301915,0.00010198,2]
[361207351,1747341032750,-150.0,0.00010204,2]
[361207353,1747341032760,-249.98523734,0.00010209,2]
[361207355,1747341032770,-309.63301915,0.00010209,2]
[361207357,1747341032780,-150.0,0.00010211,2]
[361207359,1747341032789,-150.0,0.00010211,2]
[361207361,1747341032798,-150.0,0.00010212,2]
[361207363,1747341032812,-249.98523734,0.00010221,2]
[361207365,1747341032821,-309.63301915,0.00010221,2]
[361207367,1747341032830,-150.0,0.00010221,2]
[361207369,1747341032840,-150.0,0.00010224,2]
[361207371,1747341032850,-249.98523734,0.00010232,2]
[361207373,1747341032859,-309.63301915,0.00010232,2]
[361207375,1747341032869,-150.0,0.00010235,2]
[361207377,1747341032878,-150.0,0.00010237,2]
[361207379,1747341032889,-150.0,0.00010237,2]
[361207381,1747341032898,-150.0,0.00010237,2]
[361207383,1747341032907,-249.98523734,0.00010243,2]
[361207385,1747341032916,-309.63301915,0.00010243,2]
[361207387,1747341032926,-150.0,0.00010243,2]
[361207389,1747341032935,-5.1,0.00010243,2]
[361207391,1747341032946,-150.0,0.0001025,2]
[361207393,1747341032955,-249.98523734,0.00010254,2]
[361207395,1747341032965,-309.63301915,0.00010254,2]
[361207397,1747341032974,-150.0,0.00010254,2]
[361207399,1747341032982,-150.0,0.00010254,2]
[361207401,1747341032992,-150.0,0.00010262,2]
[361207403,1747341033001,-150.0,0.00010262,2]
[361207405,1747341033010,-249.98523734,0.00010265,2]
[361207407,1747341033019,-309.63301915,0.00010265,2]
[361207409,1747341033029,-150.0,0.00010271,2]
[361207411,1747341033038,-150.0,0.00010275,2]
[361207413,1747341033047,-150.0,0.00010275,2]
[361207415,1747341033057,-249.98523734,0.00010276,2]
[361207417,1747341033066,-309.63301915,0.00010276,2]
[361207419,1747341033076,-249.98523734,0.00010287,2]
[361207421,1747341033086,-309.63301915,0.00010287,2]
[361207423,1747341033095,-150.0,0.00010287,2]
[361207425,1747341033105,-150.0,0.00010287,2]
[361207427,1747341033114,-150.0,0.00010287,2]
[361207429,1747341033123,-150.0,0.00010287,2]
[361207431,1747341033133,-150.0,0.00010288,2]
[361207433,1747341033143,-150.0,0.00010292,2]
[361207435,1747341033152,-249.98523734,0.00010298,2]
[361207439,1747341033175,-309.63301915,0.00010298,2]
[361207442,1747341033192,-150.0,0.00010301,2]
[361207445,1747341033211,-150.0,0.00010304,2]
[361207447,1747341033228,-150.0,0.00010308,2]
[361207450,1747341033243,-249.98523734,0.00010309,2]
[361207453,1747341033261,-309.63301915,0.00010309,2]
[361207456,1747341033282,-150.0,0.00010312,2]
[361207459,1747341033299,-150.0,0.00010314,2]
[361207462,1747341033318,-249.98523734,0.0001032,2]
[361207465,1747341033337,-309.63301915,0.0001032,2]
[361207468,1747341033358,-150.0,0.0001032,2]
[361207471,1747341033376,-150.0,0.00010327,2]
[361207473,1747341033390,-249.98523734,0.00010332,2]
[361207476,1747341033409,-309.63301915,0.00010332,2]
[361207479,1747341033423,-150.0,0.00010337,2]
[361207481,1747341033439,-150.0,0.00010337,2]
[361207484,1747341033453,-150.0,0.0001034,2]
[361207487,1747341033469,-150.0,0.0001034,2]
[361207489,1747341033488,-249.98523734,0.00010343,2]
[361207492,1747341033504,-309.63301915,0.00010343,2]
[361207495,1747341033519,-150.0,0.0001035,2]
[361207497,1747341033535,-150.0,0.00010353,2]
[361207500,1747341033551,-249.98523734,0.00010354,2]
[361207501,1747341033566,-309.63301915,0.00010354,2]
[361207502,1747341033581,-150.0,0.00010354,2]
[361207503,1747341033598,-150.0,0.00010362,2]
[361207504,1747341033612,-249.98523734,0.00010365,2]
[361207505,1747341033627,-309.63301915,0.00010365,2]
[361207506,1747341033642,-150.0,0.00010366,2]
[361207507,1747341033656,-150.0,0.0001037,2]
[361207508,1747341033672,-150.0,0.00010372,2]
[361207510,1747341033687,-249.98523734,0.00010376,2]
[361207513,1747341033703,-309.63301915,0.00010376,2]
[361207515,1747341033718,-150.0,0.00010379,2]
[361207518,1747341033734,-249.98523734,0.00010387,2]
[361207521,1747341033750,-309.63301915,0.00010387,2]
[361207523,1747341033767,-150.0,0.00010387,2]
[361207526,1747341033783,-150.0,0.00010387,2]
[361207529,1747341033800,-150.0,0.00010387,2]
[361207531,1747341033818,-150.0,0.00010387,2]
[361207534,1747341033833,-150.0,0.00010392,2]
[361207537,1747341033849,-249.98523734,0.00010398,2]
[361207539,1747341033864,-309.63301915,0.00010398,2]
[361207542,1747341033879,-150.0,0.00010404,2]
[361207545,1747341033895,-150.0,0.00010405,2]
[361207547,1747341033910,-150.0,0.00010405,2]
[361207550,1747341033925,-150.0,0.00010408,2]
[361207552,1747341033941,-249.98523734,0.00010409,2]
[361207555,1747341033957,-309.63301915,0.00010409,2]
[361207558,1747341033973,-150.0,0.00010412,2]
[361207560,1747341033989,-150.0,0.00010418,2]
[361207563,1747341034004,-249.98523734,0.0001042,2]
[361207566,1747341034019,-309.63301915,0.0001042,2]
[361207568,1747341034036,-150.0,0.0001042,2]
[361207571,1747341034051,-150.0,0.00010431,2]
[361207574,1747341034067,-249.98523734,0.00010431,2]
[361207576,1747341034082,-309.63301915,0.00010431,2]
[361207579,1747341034098,-150.0,0.00010437,2]
[361207582,1747341034113,-150.0,0.00010437,2]
[361207584,1747341034128,-150.0,0.00010437,2]
[361207587,1747341034144,-150.0,0.00010437,2]
[361207590,1747341034161,-249.98523734,0.00010443,2]
[361207592,1747341034176,-309.63301915,0.00010443,2]
[361207595,1747341034191,-150.0,0.00010443,2]
[361207597,1747341034208,-249.98523734,0.00010454,2]
[361207600,1747341034223,-309.63301915,0.00010454,2]
[361207603,1747341034239,-150.0,0.00010454,2]
[361207605,1747341034254,-150.0,0.00010456,2]
[361207608,1747341034270,-150.0,0.00010462,2]
[361207611,1747341034285,-249.98523734,0.00010465,2]
[361207613,1747341034300,-309.63301915,0.00010465,2]
[361207616,1747341034316,-150.0,0.00010466,2]
[361207618,1747341034332,-150.0,0.00010469,2]
[361207621,1747341034348,-150.0,0.00010469,2]
[361207624,1747341034364,-150.0,0.0001047,2]
[361207627,1747341034380,-249.98523734,0.00010476,2]
[361207629,1747341034396,-309.63301915,0.00010476,2]
[361207632,1747341034413,-150.0,0.00010482,2]
[361207635,1747341034429,-249.98523734,0.00010487,2]
[361207637,1747341034443,-309.63301915,0.00010487,2]
[361207640,1747341034460,-150.0,0.00010487,2]
[361207642,1747341034477,-150.0,0.00010487,2]
[361207645,1747341034494,-150.0,0.00010487,2]
[361207648,1747341034510,-150.0,0.00010487,2]
[361207650,1747341034526,-1833.14,0.00010493,2]
[361207653,1747341034541,-150.0,0.00010495,2]
[361207656,1747341034557,-249.98523734,0.00010498,2]
[361207658,1747341034574,-309.63301915,0.00010498,2]
[361207661,1747341034588,-150.0,0.00010502,2]
[361207663,1747341034598,-150.0,0.00010504,2]
[361207688,1747341034825,-150.0,0.00010508,2]
[361207693,1747341034859,-249.98523734,0.00010509,2]
[361207695,1747341034869,-309.63301915,0.00010509,2]
[361207697,1747341034878,-150.0,0.00010512,2]
[361207699,1747341034889,-249.98523734,0.0001052,2]
[361207701,1747341034898,-309.63301915,0.0001052,2]
[361207703,1747341034907,-150.0,0.0001052,2]
[361207705,1747341034916,-150.0,0.00010521,2]
[361207707,1747341034925,-150.0,0.00010524,2]
[361207709,1747341034934,-249.98523734,0.00010531,2]
[361207711,1747341034943,-309.63301915,0.00010531,2]
[361207713,1747341034954,-150.0,0.00010534,2]
[361207715,1747341034964,-150.0,0.00010534,2]
[361207717,1747341034973,-150.0,0.00010537,2]
[361207719,1747341034982,-150.0,0.00010537,2]
[361207721,1747341034991,-249.98523734,0.00010542,2]
[361207723,1747341035000,-309.63301915,0.00010542,2]
[361207725,1747341035009,-150.0,0.00010547,2]
[361207727,1747341035019,-249.98523734,0.00010554,2]
[361207729,1747341035028,-309.63301915,0.00010554,2]
[361207731,1747341035037,-150.0,0.00010554,2]
[361207733,1747341035047,-150.0,0.0001056,2]
[361207735,1747341035056,-150.0,0.00010562,2]
[361207737,1747341035065,-249.98523734,0.00010565,2]
[361207739,1747341035075,-309.63301915,0.00010565,2]
[361207741,1747341035084,-150.0,0.00010566,2]
[361207743,1747341035093,-150.0,0.0001057,2]
[361207745,1747341035102,-150.0,0.00010573,2]
[361207747,1747341035111,-249.98523734,0.00010576,2]
[361207749,1747341035120,-309.63301915,0.00010576,2]
[361207751,1747341035130,-150.0,0.00010582,2]
[361207753,1747341035139,-150.0,0.00010586,2]
[361207755,1747341035149,-249.98523734,0.00010587,2]
[361207757,1747341035158,-309.63301915,0.00010587,2]
[361207759,1747341035167,-150.0,0.00010587,2]
[361207761,1747341035176,-150.0,0.00010587,2]
[361207763,1747341035186,-150.0,0.00010587,2]
[361207765,1747341035195,-150.0,0.00010587,2]
[361207767,1747341035205,-249.98523734,0.00010598,2]
[361207769,1747341035214,-309.63301915,0.00010598,2]
[361207771,1747341035223,-150.0,0.00010599,2]
[361207773,1747341035232,-150.0,0.00010599,2]
[361207775,1747341035241,-150.0,0.00010603,2]
[361207777,1747341035250,-249.98523734,0.00010609,2]
[361207779,1747341035260,-309.63301915,0.00010609,2]
[361207781,1747341035269,-150.0,0.00010611,2]
[361207783,1747341035279,-150.0,0.00010612,2]
[361207785,1747341035288,-211.67727007,0.0001062,2]
[361207787,1747341035303,-38.30796727,0.0001062,2]
[361207789,1747341035312,-309.63301915,0.0001062,2]
[361207791,1747341035321,-150.0,0.0001062,2]
[361207793,1747341035330,-24.0592721,0.0001062,2]
[361207797,1747341035358,-125.9407279,0.0001062,2]
[361207799,1747341035367,-150.0,0.00010624,2]
[361207801,1747341035377,-150.0,0.00010631,2]
[361207803,1747341035386,-48.93165014,0.00010631,2]
[361207806,1747341035398,-201.0535872,0.00010631,2]
[361207808,1747341035407,-309.63301915,0.00010631,2]
[361207810,1747341035418,-150.0,0.00010637,2]
[361207812,1747341035428,-81.3291518,0.00010637,2]
[361207815,1747341035450,-68.6708482,0.00010637,2]
[361207817,1747341035460,-150.0,0.00010637,2]
[361207819,1747341035470,-150.0,0.00010639,2]
[361207821,1747341035479,-249.98523734,0.00010642,2]
[361207823,1747341035488,-309.63301915,0.00010642,2]
[361207825,1747341035497,-150.0,0.0001065,2]
[361207827,1747341035506,-249.98523734,0.00010653,2]
[361207829,1747341035515,-309.63301915,0.00010653,2]
[361207831,1747341035523,-150.0,0.00010653,2]
[361207833,1747341035533,-150.0,0.00010662,2]
[361207835,1747341035541,-150.0,0.00010663,2]
[361207837,1747341035549,-150.0,0.00010663,2]
[361207839,1747341035558,-249.98523734,0.00010664,2]
[361207841,1747341035567,-309.63301915,0.00010664,2]
[361207843,1747341035577,-150.0,0.0001067,2]
[361207845,1747341035586,-249.98523734,0.00010676,2]
[361207847,1747341035594,-309.63301915,0.00010676,2]
[361207849,1747341035603,-150.0,0.00010676,2]
[361207851,1747341035613,-249.98523734,0.00010687,2]
[361207853,1747341035622,-309.63301915,0.00010687,2]
[361207855,1747341035631,-150.0,0.00010687,2]
[361207857,1747341035641,-150.0,0.00010687,2]
[361207859,1747341035650,-150.0,0.00010687,2]
[361207861,1747341035659,-150.0,0.00010687,2]
[361207863,1747341035669,-150.0,0.00010689,2]
[361207865,1747341035678,-150.0,0.00010695,2]
[361207867,1747341035687,-150.0,0.00010697,2]
[361207869,1747341035696,-26.49856819,0.00010698,2]
[361207872,1747341035709,-223.48666915,0.00010698,2]
[361207874,1747341035718,-309.63301915,0.00010698,2]
[361207876,1747341035727,-150.0,0.00010702,2]
[361207878,1747341035737,-150.0,0.00010703,2]
[361207880,1747341035747,-249.98523734,0.00010709,2]
[361207882,1747341035756,-126.04932746,0.00010709,2]
[361207885,1747341035782,-183.58369169,0.00010709,2]
[361207887,1747341035792,-150.0,0.00010712,2]
[361207890,1747341035801,-150.0,0.00010715,2]
[361207892,1747341035814,-249.98523734,0.0001072,2]
[361207894,1747341035824,-309.63301915,0.0001072,2]
[361207896,1747341035833,-150.0,0.0001072,2]
[361207898,1747341035843,-150.0,0.00010728,2]
[361207899,1747341035852,-150.0,0.00010728,2]
[361207901,1747341035861,-249.98523734,0.00010731,2]
[361207904,1747341035871,-309.63301915,0.00010731,2]
[361207906,1747341035880,-8.51585533,0.00010737,2]
[361207911,1747341035920,-141.48414467,0.00010737,2]
[361207913,1747341035930,-150.0,0.00010737,2]
[361207915,1747341035939,-150.0,0.00010741,2]
[361207917,1747341035949,-79.10739126,0.00010742,2]
[361207919,1747341035961,-170.87784608,0.00010742,2]
[361207921,1747341035971,-309.63301915,0.00010742,2]
[361207922,1747341035980,-165.24913477,0.00010753,2]
[361207923,1747341035991,-84.73610257,0.00010753,2]
[361207924,1747341036000,-309.63301915,0.00010753,2]
[361207925,1747341036010,-150.0,0.00010753,2]
[361207926,1747341036019,-96.99399795,0.00010754,2]
[361208143,1747341038097,-53.00600205,0.00010754,2]
[361208145,1747341038107,-150.0,0.00010755,2]
[361208147,1747341038116,-150.0,0.0001076,2]
[361208149,1747341038125,-150.0,0.00010762,2]
[361208151,1747341038135,-249.98523734,0.00010764,2]
[361208153,1747341038145,-309.63301915,0.00010764,2]
[361208155,1747341038154,-132.1832449,0.00010767,2]
[361208157,1747341038165,-17.8167551,0.00010767,2]
[361208159,1747341038174,-150.0,0.0001077,2]
[361208161,1747341038184,-249.98523734,0.00010775,2]
[361208162,1747341038193,-309.63301915,0.00010775,2]
[361208163,1747341038202,-150.0,0.0001078,2]
[361208164,1747341038211,-249.98523734,0.00010787,2]
[361208165,1747341038220,-309.63301915,0.00010787,2]
[361208166,1747341038231,-150.0,0.00010787,2]
[361208167,1747341038240,-150.0,0.00010787,2]